[Event "*** Titled Tuesday Blitz"]
[Site "Chess.com"]
[Date "2020.05.12"]
[Round "2"]
[White "Didici"]
[Black "Matalon"]
[Result "1-0"]
[WhiteElo "2637"]
[BlackElo "2338"]
[TimeControl "180+1"]
[EndTime "10:19:23 PDT"]
[Termination "Didici won on time"]

1. d4 {[%clk 0:03:00.9]} 1... Nf6 {[%clk 0:02:57.8]} 2. c4 {[%clk 0:03:01.8]}
2... g6 {[%clk 0:02:57.5]} 3. Nf3 {[%clk 0:03:00.7]} 3... Bg7 {[%clk 0:02:57.8]}
4. g3 {[%clk 0:02:58]} 4... O-O {[%clk 0:02:58.7]} 5. Bg2 {[%clk 0:02:57.8]}
5... d6 {[%clk 0:02:59.2]} 6. O-O {[%clk 0:02:57.3]} 6... Nc6 {[%clk 0:02:58.3]}
7. Nc3 {[%clk 0:02:57.1]} 7... Bg4 {[%clk 0:02:57.9]} 8. d5 {[%clk 0:02:41.3]}
8... Na5 {[%clk 0:02:55.5]} 9. Qd3 {[%clk 0:02:37.9]} 9... c5 {[%clk 0:02:55.7]}
10. Ne1 {[%clk 0:02:25.3]} 10... a6 {[%clk 0:02:52]} 11. Nc2 {[%clk 0:02:19.9]}
11... Rb8 {[%clk 0:02:47.1]} 12. Bd2 {[%clk 0:02:03]} 12... b5 {[%clk
0:02:42.1]} 13. b3 {[%clk 0:01:54.3]} 13... b4 {[%clk 0:02:13.3]} 14. Nd1 {[%clk
0:01:43.9]} 14... Nd7 {[%clk 0:01:47.3]} 15. f3 {[%clk 0:01:25.2]} 15... Bxa1
{[%clk 0:01:44.3]} 16. Nxa1 {[%clk 0:01:26.1]} 16... Ne5 {[%clk 0:01:43.5]} 17.
Qc2 {[%clk 0:01:25]} 17... Bd7 {[%clk 0:01:34.5]} 18. Bh6 {[%clk 0:01:18.8]}
18... Re8 {[%clk 0:01:32.6]} 19. e4 {[%clk 0:01:17.2]} 19... f6 {[%clk
0:01:31.6]} 20. h4 {[%clk 0:01:11.6]} 20... Nf7 {[%clk 0:01:22.8]} 21. Bc1
{[%clk 0:01:06.8]} 21... e6 {[%clk 0:01:22.6]} 22. dxe6 {[%clk 0:00:46.2]} 22...
Bxe6 {[%clk 0:01:21.9]} 23. Bb2 {[%clk 0:00:45.7]} 23... Nc6 {[%clk 0:01:21.2]}
24. Qd2 {[%clk 0:00:40.2]} 24... Nd4 {[%clk 0:01:19.3]} 25. Nc2 {[%clk
0:00:35.4]} 25... Nxc2 {[%clk 0:01:13.5]} 26. Qxc2 {[%clk 0:00:36.3]} 26... a5
{[%clk 0:01:13.5]} 27. Ne3 {[%clk 0:00:36]} 27... a4 {[%clk 0:01:12.6]} 28. f4
{[%clk 0:00:35.8]} 28... axb3 {[%clk 0:01:11.4]} 29. axb3 {[%clk 0:00:36.7]}
29... Ra8 {[%clk 0:01:08.6]} 30. Qb1 {[%clk 0:00:34.3]} 30... Qa5 {[%clk
0:01:06.9]} 31. Bxf6 {[%clk 0:00:32.1]} 31... Qa2 {[%clk 0:01:06.8]} 32. Qd1
{[%clk 0:00:31.8]} 32... Ra3 {[%clk 0:00:58.3]} 33. f5 {[%clk 0:00:24.8]} 33...
Bd7 {[%clk 0:00:50.9]} 34. Qg4 {[%clk 0:00:21.1]} 34... Qxb3 {[%clk 0:00:46.8]}
35. Nd5 {[%clk 0:00:20.5]} 35... Qxg3 {[%clk 0:00:46.1]} 36. Qe2 {[%clk
0:00:17]} 36... Bxf5 {[%clk 0:00:43.5]} 37. Bb2 {[%clk 0:00:13.3]} 37... Ne5
{[%clk 0:00:14.7]} 38. Nf6+ {[%clk 0:00:12.6]} 38... Kf7 {[%clk 0:00:15]} 39.
Nxe8 {[%clk 0:00:12.5]} 39... Kxe8 {[%clk 0:00:09.9]} 40. exf5 {[%clk
0:00:12.4]} 40... Re3 {[%clk 0:00:06.5]} 41. Qf2 {[%clk 0:00:11]} 41... Nf3+
{[%clk 0:00:05.8]} 42. Qxf3 {[%clk 0:00:10.7]} 42... Rxf3 {[%clk 0:00:06.5]} 43.
Rxf3 {[%clk 0:00:11.3]} 43... Qxh4 {[%clk 0:00:07.4]} 44. f6 {[%clk 0:00:10]}
44... Qxc4 {[%clk 0:00:08.3]} 45. f7+ {[%clk 0:00:09.3]} 45... Qxf7 {[%clk
0:00:07]} 46. Rxf7 {[%clk 0:00:10.2]} 46... Kxf7 {[%clk 0:00:07.5]} 47. Bd5+
{[%clk 0:00:08.8]} 47... Ke7 {[%clk 0:00:07.7]} 48. Kf2 {[%clk 0:00:09.7]} 48...
h5 {[%clk 0:00:07]} 49. Kf3 {[%clk 0:00:09.1]} 49... Kd7 {[%clk 0:00:07.6]} 50.
Kf4 {[%clk 0:00:08.9]} 50... Kc7 {[%clk 0:00:08.5]} 51. Bf7 {[%clk 0:00:06.2]}
51... Kb6 {[%clk 0:00:09.4]} 52. Bxg6 {[%clk 0:00:05.7]} 52... Kb5 {[%clk
0:00:10.3]} 53. Bxh5 {[%clk 0:00:05.2]} 53... c4 {[%clk 0:00:11.2]} 54. Be2
{[%clk 0:00:05]} 54... d5 {[%clk 0:00:09.7]} 55. Ke5 {[%clk 0:00:04.9]} 55...
Kc5 {[%clk 0:00:09.7]} 56. Bd4+ {[%clk 0:00:05.5]} 56... Kc6 {[%clk 0:00:09.7]}
57. Bf3 {[%clk 0:00:05.6]} 57... c3 {[%clk 0:00:09.9]} 58. Bxd5+ {[%clk
0:00:05.9]} 58... Kb5 {[%clk 0:00:10.8]} 59. Bb3 {[%clk 0:00:06.8]} 59... Kc6
{[%clk 0:00:07.9]} 60. Ke4 {[%clk 0:00:06.5]} 60... Kb5 {[%clk 0:00:08.1]} 61.
Kd3 {[%clk 0:00:07.4]} 61... Kc6 {[%clk 0:00:07.5]} 62. Kc4 {[%clk 0:00:08.3]}
1-0

[Event "*** Titled Tuesday Blitz"]
[Site "Chess.com"]
[Date "2020.05.12"]
[Round "2"]
[White "grandemestregringo"]
[Black "baag"]
[Result "1-0"]
[WhiteElo "2459"]
[BlackElo "2637"]
[TimeControl "180+1"]
[EndTime "10:19:26 PDT"]
[Termination "grandemestregringo won by resignation"]

1. d4 {[%clk 0:03:00.9]} 1... Nf6 {[%clk 0:03:00.9]} 2. c4 {[%clk 0:03:01.3]}
2... c5 {[%clk 0:03:01.5]} 3. Nf3 {[%clk 0:03:01.9]} 3... cxd4 {[%clk
0:03:01.5]} 4. Nxd4 {[%clk 0:03:02.8]} 4... g6 {[%clk 0:03:02.1]} 5. Nc3 {[%clk
0:03:02.1]} 5... Bg7 {[%clk 0:03:02.7]} 6. g3 {[%clk 0:02:55.7]} 6... O-O {[%clk
0:03:03.1]} 7. Bg2 {[%clk 0:02:55.9]} 7... Nc6 {[%clk 0:03:03.7]} 8. O-O {[%clk
0:02:56.4]} 8... d6 {[%clk 0:03:03]} 9. Bg5 {[%clk 0:02:53.3]} 9... Bd7 {[%clk
0:03:02.6]} 10. Nxc6 {[%clk 0:02:31.2]} 10... Bxc6 {[%clk 0:03:03.5]} 11. Bxc6
{[%clk 0:02:29.1]} 11... bxc6 {[%clk 0:03:04.4]} 12. Qd2 {[%clk 0:02:29.1]}
12... Rb8 {[%clk 0:03:04.2]} 13. Rad1 {[%clk 0:02:25.3]} 13... Qb6 {[%clk
0:02:58.4]} 14. b3 {[%clk 0:02:23.9]} 14... Rfd8 {[%clk 0:02:57.6]} 15. Na4
{[%clk 0:02:17.4]} 15... Qc7 {[%clk 0:02:55.1]} 16. Qc2 {[%clk 0:02:06.5]} 16...
Rd7 {[%clk 0:02:40.8]} 17. c5 {[%clk 0:02:04.4]} 17... d5 {[%clk 0:02:39.7]} 18.
Bxf6 {[%clk 0:01:58.8]} 18... Bxf6 {[%clk 0:02:39.6]} 19. e4 {[%clk 0:01:59.7]}
19... e6 {[%clk 0:02:35.2]} 20. f4 {[%clk 0:01:53.7]} 20... Rb4 {[%clk
0:02:28.6]} 21. e5 {[%clk 0:01:49.6]} 21... Be7 {[%clk 0:02:28.8]} 22. a3 {[%clk
0:01:49.3]} 22... Rb5 {[%clk 0:02:20.2]} 23. b4 {[%clk 0:01:48.4]} 23... a5
{[%clk 0:02:19.7]} 24. Nc3 {[%clk 0:01:40.9]} 24... Rb8 {[%clk 0:02:17.7]} 25.
Na2 {[%clk 0:01:40.8]} 25... axb4 {[%clk 0:02:17]} 26. axb4 {[%clk 0:01:41.7]}
26... Qa7 {[%clk 0:02:15.5]} 27. Ra1 {[%clk 0:01:34.7]} 27... Qa3 {[%clk
0:02:11.9]} 28. Rfb1 {[%clk 0:01:30.6]} 28... Qe3+ {[%clk 0:02:10.7]} 29. Kg2
{[%clk 0:01:29.9]} 29... Ra7 {[%clk 0:02:06.6]} 30. Rb3 {[%clk 0:01:17.4]} 30...
Qe4+ {[%clk 0:02:03.7]} 31. Qxe4 {[%clk 0:01:16.2]} 31... dxe4 {[%clk
0:02:04.6]} 32. Kf2 {[%clk 0:01:01.2]} 32... Rba8 {[%clk 0:02:03.2]} 33. Rb2
{[%clk 0:01:01.3]} 33... Ra3 {[%clk 0:02:03]} 34. Ke2 {[%clk 0:01:01.5]} 34...
f6 {[%clk 0:01:59.1]} 35. Rc2 {[%clk 0:00:52.9]} 35... fxe5 {[%clk 0:01:59]} 36.
fxe5 {[%clk 0:00:53.8]} 36... Bf8 {[%clk 0:01:58.1]} 37. b5 {[%clk 0:00:50]}
37... cxb5 {[%clk 0:01:33.7]} 38. c6 {[%clk 0:00:50.9]} 38... b4 {[%clk
0:01:34.1]} 39. c7 {[%clk 0:00:46.4]} 39... Rc8 {[%clk 0:01:34.5]} 40. Rd1
{[%clk 0:00:34.7]} 40... Rd3 {[%clk 0:01:25.5]} 41. Nc1 {[%clk 0:00:30.7]} 41...
b3 {[%clk 0:01:14.6]} 42. Nxb3 {[%clk 0:00:22.7]} 42... Bg7 {[%clk 0:01:07.2]}
43. Rc5 {[%clk 0:00:20.4]} 43... Kf7 {[%clk 0:00:53.3]} 44. Rxd3 {[%clk
0:00:19.5]} 44... exd3+ {[%clk 0:00:54.2]} 45. Kxd3 {[%clk 0:00:20.2]} 45... Ke7
{[%clk 0:00:54.5]} 46. Nd4 {[%clk 0:00:18.5]} 46... Kd7 {[%clk 0:00:55]} 47. Nb5
{[%clk 0:00:18.7]} 47... h5 {[%clk 0:00:44.9]} 48. Nd6 {[%clk 0:00:18.1]} 48...
Bf8 {[%clk 0:00:42.9]} 49. Nxc8 {[%clk 0:00:09.9]} 49... Bxc5 {[%clk 0:00:43.4]}
50. Nd6 {[%clk 0:00:10.4]} 50... Kxc7 {[%clk 0:00:43.9]} 51. Ne4 {[%clk
0:00:09.7]} 51... Be7 {[%clk 0:00:43.5]} 52. Ke3 {[%clk 0:00:09.8]} 52... Kc6
{[%clk 0:00:43.4]} 53. Kf4 {[%clk 0:00:10.5]} 53... Kd5 {[%clk 0:00:43.8]} 54.
Nf6+ {[%clk 0:00:10.6]} 54... Kd4 {[%clk 0:00:44.2]} 55. h3 {[%clk 0:00:09.3]}
55... Bd8 {[%clk 0:00:41.2]} 56. h4 {[%clk 0:00:07.4]} 56... Be7 {[%clk
0:00:30.6]} 57. Ng8 {[%clk 0:00:07.4]} 57... Bd8 {[%clk 0:00:28.4]} 58. Nf6
{[%clk 0:00:07.4]} 58... Bc7 {[%clk 0:00:26.9]} 59. Nd7 {[%clk 0:00:05.6]} 59...
Bd8 {[%clk 0:00:22.9]} 60. Nf8 {[%clk 0:00:04.2]} 60... Kd5 {[%clk 0:00:21.4]}
61. Nxg6 {[%clk 0:00:04.5]} 61... Ba5 {[%clk 0:00:22.1]} 62. Kg5 {[%clk
0:00:04.8]} 62... Be1 {[%clk 0:00:22.7]} 63. Kxh5 {[%clk 0:00:05.7]} 63... Bxg3
{[%clk 0:00:22.8]} 64. Kg4 {[%clk 0:00:06.2]} 64... Be1 {[%clk 0:00:21.9]} 65.
Kg5 {[%clk 0:00:06.1]} 65... Bd2+ {[%clk 0:00:22.8]} 66. Kf6 {[%clk 0:00:06.6]}
66... Bh6 {[%clk 0:00:20.9]} 67. h5 {[%clk 0:00:07.5]} 67... Be3 {[%clk
0:00:20.1]} 68. Kg7 {[%clk 0:00:07.9]} 68... Ke4 {[%clk 0:00:16.1]} 69. h6
{[%clk 0:00:07.3]} 1-0

[Event "*** Titled Tuesday Blitz"]
[Site "Chess.com"]
[Date "2020.05.12"]
[Round "2"]
[White "White_Ghost"]
[Black "Oneofmyturns"]
[Result "0-1"]
[WhiteElo "2431"]
[BlackElo "2662"]
[TimeControl "180+1"]
[EndTime "10:19:33 PDT"]
[Termination "Oneofmyturns won by checkmate"]

1. d4 {[%clk 0:02:53.9]} 1... Nf6 {[%clk 0:02:59.5]} 2. c4 {[%clk 0:02:53.8]}
2... e6 {[%clk 0:03:00]} 3. Nf3 {[%clk 0:02:53.5]} 3... d5 {[%clk 0:02:59.8]} 4.
g3 {[%clk 0:02:52.2]} 4... dxc4 {[%clk 0:02:57.7]} 5. Bg2 {[%clk 0:02:51.9]}
5... c5 {[%clk 0:02:58.3]} 6. O-O {[%clk 0:02:50.6]} 6... Nc6 {[%clk 0:02:58.7]}
7. dxc5 {[%clk 0:02:48.3]} 7... Qxd1 {[%clk 0:02:59.6]} 8. Rxd1 {[%clk
0:02:48.4]} 8... Bxc5 {[%clk 0:03:00.2]} 9. Nbd2 {[%clk 0:02:49]} 9... c3 {[%clk
0:03:00.5]} 10. bxc3 {[%clk 0:02:49.9]} 10... O-O {[%clk 0:03:00.5]} 11. Nb3
{[%clk 0:02:50.1]} 11... Be7 {[%clk 0:02:59.9]} 12. Be3 {[%clk 0:02:42.7]} 12...
Nd5 {[%clk 0:02:52.2]} 13. Bd2 {[%clk 0:02:37.8]} 13... Ba3 {[%clk 0:02:43.4]}
14. e4 {[%clk 0:02:27]} 14... Nb6 {[%clk 0:02:41]} 15. Nbd4 {[%clk 0:02:24.1]}
15... Bd7 {[%clk 0:02:05.9]} 16. Rab1 {[%clk 0:02:18.6]} 16... Rfd8 {[%clk
0:01:57]} 17. Be3 {[%clk 0:01:54]} 17... Nc4 {[%clk 0:01:36.6]} 18. Rxb7 {[%clk
0:01:46]} 18... N6a5 {[%clk 0:01:36.6]} 19. Rbb1 {[%clk 0:01:38.8]} 19... Nxe3
{[%clk 0:01:27.7]} 20. fxe3 {[%clk 0:01:39.7]} 20... Ba4 {[%clk 0:01:23]} 21.
Re1 {[%clk 0:00:57.9]} 21... Rac8 {[%clk 0:01:23.4]} 22. Nb5 {[%clk 0:00:38.5]}
22... Bc5 {[%clk 0:01:23.8]} 23. Kf2 {[%clk 0:00:28.4]} 23... Nc4 {[%clk
0:01:01]} 24. Bf1 {[%clk 0:00:24]} 24... Bxb5 {[%clk 0:00:52.4]} 25. Rxb5 {[%clk
0:00:22]} 25... Nd6 {[%clk 0:00:52.9]} 26. Rb3 {[%clk 0:00:16.3]} 26... Nxe4+
{[%clk 0:00:51.9]} 27. Kg2 {[%clk 0:00:16.8]} 27... Bb6 {[%clk 0:00:38.3]} 28.
c4 {[%clk 0:00:12.9]} 28... f6 {[%clk 0:00:31.5]} 29. Rd3 {[%clk 0:00:12]} 29...
Rxd3 {[%clk 0:00:23.6]} 30. Bxd3 {[%clk 0:00:12.9]} 30... Nc5 {[%clk 0:00:24.2]}
31. Bf1 {[%clk 0:00:10.3]} 31... Rd8 {[%clk 0:00:22.6]} 32. Nd4 {[%clk
0:00:10.2]} 32... e5 {[%clk 0:00:21.8]} 33. Nb3 {[%clk 0:00:10.5]} 33... Ne4
{[%clk 0:00:20]} 34. Kf3 {[%clk 0:00:10.9]} 34... Ng5+ {[%clk 0:00:19.5]} 35.
Ke2 {[%clk 0:00:10.7]} 35... Ne6 {[%clk 0:00:19.7]} 36. Rd1 {[%clk 0:00:10.9]}
36... Rc8 {[%clk 0:00:20.1]} 37. Kd2 {[%clk 0:00:08.6]} 37... Kf8 {[%clk
0:00:20.1]} 38. Kc3 {[%clk 0:00:07.4]} 38... Bxe3 {[%clk 0:00:19.2]} 39. Rd6
{[%clk 0:00:07.6]} 39... Nc5 {[%clk 0:00:16.3]} 40. Nxc5 {[%clk 0:00:07.6]}
40... Bxc5 {[%clk 0:00:16.8]} 41. Rd7 {[%clk 0:00:07.8]} 41... Bd4+ {[%clk
0:00:16]} 42. Kd3 {[%clk 0:00:07.4]} 42... h5 {[%clk 0:00:15.4]} 43. Bg2 {[%clk
0:00:07.6]} 43... Bb6 {[%clk 0:00:07.2]} 44. Bd5 {[%clk 0:00:06.7]} 44... Rd8
{[%clk 0:00:06.7]} 45. Rf7+ {[%clk 0:00:06.9]} 45... Kg8 {[%clk 0:00:04]} 46.
Re7+ {[%clk 0:00:02.6]} 46... Kh7 {[%clk 0:00:04.9]} 47. Ke4 {[%clk 0:00:02.7]}
47... Kg6 {[%clk 0:00:04.2]} 48. h4 {[%clk 0:00:02.4]} 48... Bd4 {[%clk
0:00:04.6]} 49. Bf7+ {[%clk 0:00:02.6]} 49... Kh6 {[%clk 0:00:04.5]} 50. Bd5
{[%clk 0:00:03.5]} 50... Kg6 {[%clk 0:00:04.2]} 51. Rc7 {[%clk 0:00:04.4]} 51...
f5+ {[%clk 0:00:04.4]} 52. Kf3 {[%clk 0:00:04.3]} 52... Rd6 {[%clk 0:00:05.3]}
53. Bf7+ {[%clk 0:00:04.2]} 53... Kh6 {[%clk 0:00:05.2]} 54. Bd5 {[%clk
0:00:05.1]} 54... Ra6 {[%clk 0:00:05.5]} 55. Rc6+ {[%clk 0:00:05.1]} 55... Rxc6
{[%clk 0:00:05.5]} 56. Bxc6 {[%clk 0:00:06]} 56... Kg6 {[%clk 0:00:05.9]} 57.
Bd5 {[%clk 0:00:06.3]} 57... Kf6 {[%clk 0:00:06.4]} 58. a4 {[%clk 0:00:06.4]}
58... g5 {[%clk 0:00:06.8]} 59. hxg5+ {[%clk 0:00:06.1]} 59... Kxg5 {[%clk
0:00:07.7]} 60. Kg2 {[%clk 0:00:06.5]} 60... h4 {[%clk 0:00:08.1]} 61. gxh4+
{[%clk 0:00:06.9]} 61... Kxh4 {[%clk 0:00:09]} 62. Kf3 {[%clk 0:00:07.8]} 62...
Kg5 {[%clk 0:00:09.6]} 63. Kg3 {[%clk 0:00:07.8]} 63... e4 {[%clk 0:00:09.4]}
64. Bc6 {[%clk 0:00:06.8]} 64... f4+ {[%clk 0:00:09.5]} 65. Kg2 {[%clk
0:00:07.2]} 65... Kf5 {[%clk 0:00:10.4]} 66. Kf1 {[%clk 0:00:07.2]} 66... f3
{[%clk 0:00:10.7]} 67. c5 {[%clk 0:00:05.4]} 67... Bxc5 {[%clk 0:00:09.9]} 68.
Bb7 {[%clk 0:00:05.5]} 68... Kf4 {[%clk 0:00:10.4]} 69. Ke1 {[%clk 0:00:05.8]}
69... e3 {[%clk 0:00:10.9]} 70. Kf1 {[%clk 0:00:06.2]} 70... e2+ {[%clk
0:00:10.8]} 71. Ke1 {[%clk 0:00:06.4]} 71... Bb4+ {[%clk 0:00:11.4]} 72. Kf2
{[%clk 0:00:06.9]} 72... e1=Q# {[%clk 0:00:12]} 0-1

[Event "*** Titled Tuesday Blitz"]
[Site "Chess.com"]
[Date "2020.05.12"]
[Round "2"]
[White "Gajuchess"]
[Black "Karacsonyi_Gellert"]
[Result "1/2-1/2"]
[WhiteElo "2709"]
[BlackElo "2488"]
[TimeControl "180+1"]
[EndTime "10:19:34 PDT"]
[Termination "Game drawn by repetition"]

1. Nf3 {[%clk 0:02:55.4]} 1... Nf6 {[%clk 0:02:59.7]} 2. c4 {[%clk 0:02:52.3]}
2... e6 {[%clk 0:02:59.6]} 3. Nc3 {[%clk 0:02:51.9]} 3... d5 {[%clk 0:02:59.7]}
4. d4 {[%clk 0:02:51.4]} 4... Nbd7 {[%clk 0:02:59.3]} 5. e3 {[%clk 0:02:50.1]}
5... a6 {[%clk 0:02:58]} 6. cxd5 {[%clk 0:02:40.1]} 6... exd5 {[%clk 0:02:57.2]}
7. Bd3 {[%clk 0:02:41]} 7... c5 {[%clk 0:02:56.6]} 8. O-O {[%clk 0:02:41.7]}
8... Be7 {[%clk 0:02:55.9]} 9. b3 {[%clk 0:02:42]} 9... O-O {[%clk 0:02:55.8]}
10. Bb2 {[%clk 0:02:40.1]} 10... cxd4 {[%clk 0:02:55.9]} 11. Nxd4 {[%clk
0:02:39.7]} 11... Nc5 {[%clk 0:02:56.3]} 12. Be2 {[%clk 0:02:38.5]} 12... Nce4
{[%clk 0:02:54.6]} 13. Rc1 {[%clk 0:02:36.7]} 13... Nxc3 {[%clk 0:02:52.9]} 14.
Bxc3 {[%clk 0:02:35.2]} 14... Ne4 {[%clk 0:02:51.5]} 15. Bb2 {[%clk 0:02:35.5]}
15... Be6 {[%clk 0:02:48.6]} 16. Bd3 {[%clk 0:02:25.8]} 16... Rc8 {[%clk
0:02:42.6]} 17. Nxe6 {[%clk 0:02:17.7]} 17... fxe6 {[%clk 0:02:42]} 18. Rxc8
{[%clk 0:02:14.2]} 18... Qxc8 {[%clk 0:02:39.5]} 19. Bxe4 {[%clk 0:02:13.6]}
19... dxe4 {[%clk 0:02:40.4]} 20. Qg4 {[%clk 0:02:12.4]} 20... Bf6 {[%clk
0:02:39.3]} 21. Bxf6 {[%clk 0:02:05]} 21... Rxf6 {[%clk 0:02:40.2]} 22. Qxe4
{[%clk 0:02:05.6]} 22... h6 {[%clk 0:02:34.5]} 23. h4 {[%clk 0:02:03.4]} 23...
Rf5 {[%clk 0:02:32.1]} 24. Rd1 {[%clk 0:02:02.6]} 24... Rc5 {[%clk 0:02:25.4]}
25. g3 {[%clk 0:01:56.6]} 25... Rc1 {[%clk 0:02:24.3]} 26. Rxc1 {[%clk
0:01:56.7]} 26... Qxc1+ {[%clk 0:02:24.8]} 27. Kg2 {[%clk 0:01:57.6]} 27... Qc8
{[%clk 0:02:25.1]} 28. h5 {[%clk 0:01:55.6]} 28... Qd7 {[%clk 0:02:23.8]} 29. g4
{[%clk 0:01:54.2]} 29... Kh8 {[%clk 0:02:19.6]} 30. Kf3 {[%clk 0:01:50.6]} 30...
Kg8 {[%clk 0:02:16.7]} 31. Kg3 {[%clk 0:01:47.3]} 31... Qd6+ {[%clk 0:02:14.1]}
32. Kg2 {[%clk 0:01:46.4]} 32... Qd7 {[%clk 0:02:14]} 33. Qe5 {[%clk 0:01:46.2]}
33... Qc6+ {[%clk 0:02:13]} 34. Kg3 {[%clk 0:01:45.8]} 34... Qd7 {[%clk
0:02:10.8]} 35. g5 {[%clk 0:01:43.2]} 35... hxg5 {[%clk 0:02:07.5]} 36. Qxg5
{[%clk 0:01:44.1]} 36... Qd6+ {[%clk 0:02:06.8]} 37. Kg2 {[%clk 0:01:43.6]}
37... Qc6+ {[%clk 0:02:06.3]} 38. Kg1 {[%clk 0:01:43.8]} 38... Qc1+ {[%clk
0:02:05.9]} 39. Kh2 {[%clk 0:01:43.7]} 39... Qc7+ {[%clk 0:02:05.8]} 40. Qg3
{[%clk 0:01:39.1]} 40... Qc5 {[%clk 0:02:00.5]} 41. Qg6 {[%clk 0:01:29.2]} 41...
Qd6+ {[%clk 0:01:55.8]} 42. Kg2 {[%clk 0:01:28.7]} 42... Qc6+ {[%clk 0:01:52.8]}
43. e4 {[%clk 0:01:28.3]} 43... Kf8 {[%clk 0:01:47.8]} 44. h6 {[%clk 0:01:27.6]}
44... gxh6 {[%clk 0:01:48.1]} 45. Qxh6+ {[%clk 0:01:27.4]} 45... Ke7 {[%clk
0:01:48.6]} 46. Qg7+ {[%clk 0:01:27]} 46... Ke8 {[%clk 0:01:49.1]} 47. Kf3
{[%clk 0:01:24.3]} 47... a5 {[%clk 0:01:43.9]} 48. Qg8+ {[%clk 0:01:13.6]} 48...
Kd7 {[%clk 0:01:40.2]} 49. Qf7+ {[%clk 0:01:12.5]} 49... Kc8 {[%clk 0:01:37.9]}
50. Qf8+ {[%clk 0:01:11.4]} 50... Kc7 {[%clk 0:01:37.4]} 51. Qe7+ {[%clk
0:01:07.5]} 51... Kc8 {[%clk 0:01:32.4]} 52. Kf4 {[%clk 0:01:07.3]} 52... Qc1+
{[%clk 0:01:30.3]} 53. Ke5 {[%clk 0:01:06.2]} 53... Qb2+ {[%clk 0:01:26.8]} 54.
Kxe6 {[%clk 0:01:04.6]} 54... Qxa2 {[%clk 0:01:23.2]} 55. Qc5+ {[%clk
0:00:40.1]} 55... Kb8 {[%clk 0:01:21.7]} 56. Kd7 {[%clk 0:00:28.3]} 56... Qxb3
{[%clk 0:00:56.6]} 57. Qc7+ {[%clk 0:00:28]} 57... Ka7 {[%clk 0:00:56.9]} 58.
Qxa5+ {[%clk 0:00:28.9]} 58... Kb8 {[%clk 0:00:57.3]} 59. Qd8+ {[%clk
0:00:29.4]} 59... Ka7 {[%clk 0:00:57.4]} 60. Qa5+ {[%clk 0:00:30.3]} 60... Kb8
{[%clk 0:00:57.4]} 61. Qe5+ {[%clk 0:00:26.1]} 61... Ka7 {[%clk 0:00:55.9]} 62.
Qd5 {[%clk 0:00:25.7]} 62... Qh3+ {[%clk 0:00:41.2]} 63. Qf5 {[%clk 0:00:21.8]}
63... Qd3+ {[%clk 0:00:39.2]} 64. Ke7 {[%clk 0:00:19]} 64... b5 {[%clk
0:00:36.8]} 65. Qd7+ {[%clk 0:00:05.2]} 65... Qxd7+ {[%clk 0:00:36.3]} 66. Kxd7
{[%clk 0:00:06.1]} 66... b4 {[%clk 0:00:37.2]} 67. e5 {[%clk 0:00:07]} 67... b3
{[%clk 0:00:38.1]} 68. e6 {[%clk 0:00:07.9]} 68... b2 {[%clk 0:00:39]} 69. e7
{[%clk 0:00:08.5]} 69... b1=Q {[%clk 0:00:39.9]} 70. e8=Q {[%clk 0:00:09.4]}
70... Qb5+ {[%clk 0:00:34.9]} 71. Kd8 {[%clk 0:00:08.1]} 71... Qb8+ {[%clk
0:00:34]} 72. Ke7 {[%clk 0:00:07.9]} 72... Qe5+ {[%clk 0:00:33.3]} 73. Kf8
{[%clk 0:00:07.9]} 73... Qh8+ {[%clk 0:00:33.2]} 74. Kf7 {[%clk 0:00:08.5]}
74... Qh5+ {[%clk 0:00:32.8]} 75. Ke7 {[%clk 0:00:08.7]} 75... Qe5+ {[%clk
0:00:33]} 76. Kd7 {[%clk 0:00:08.6]} 76... Qb5+ {[%clk 0:00:32.7]} 77. Ke7
{[%clk 0:00:09.5]} 77... Qe5+ {[%clk 0:00:32.7]} 1/2-1/2